[Event "Chess Festival Groningen 2023 | A"]
[Site "Groningen, Netherlands"]
[Date "2023.12.23"]
[Round "3.7"]
[White "Nagarkatte, Vedant"]
[Black "Stremavicius, Titas"]
[Result "0-1"]
[TimeControl "90min/40moves + 30min + 30sec/move"]
[WhiteFideId "25636227"]
[WhiteElo "2320"]
[BlackElo "2550"]

1. e4 {[%clk 01:30:58]} c5 {[%clk 01:30:53]} {[%emt 00:00:08]} 2. Nf3 {[%clk
01:31:25]} {[%emt 00:00:03]} Nc6 {[%clk 01:31:14]} {[%emt 00:00:08]} 3. Bb5
{[%clk 01:31:51]} {[%emt 00:00:05]} g6 {[%clk 01:26:45]} {[%emt 00:04:58]} 4.
O-O {[%clk 01:32:14]} {[%emt 00:00:07]} Bg7 {[%clk 01:27:06]} {[%emt 00:00:09]}
5. c3 {[%clk 01:32:36]} {[%emt 00:00:08]} Nf6 {[%clk 01:25:28]} {[%emt
00:02:08]} 6. Re1 {[%clk 01:33:01]} {[%emt 00:00:05]} O-O {[%clk 01:24:41]}
{[%emt 00:01:17]} 7. d4 {[%clk 01:33:25]} {[%emt 00:00:06]} cxd4 {[%clk
01:25:06]} {[%emt 00:00:05]} 8. cxd4 {[%clk 01:33:51]} {[%emt 00:00:05]} d5
{[%clk 01:25:27]} {[%emt 00:00:09]} 9. e5 {[%clk 01:34:17]} {[%emt 00:00:04]}
Ne4 {[%clk 01:25:38]} {[%emt 00:00:19]} 10. Nc3 {[%clk 01:34:43]} {[%emt
00:00:04]} Nxc3 {[%clk 01:18:13]} {[%emt 00:07:54]} 11. bxc3 {[%clk 01:35:09]}
{[%emt 00:00:05]} Na5 {[%clk 01:17:08]} {[%emt 00:01:35]} 12. Bd3 {[%clk
01:35:33]} {[%emt 00:00:06]} Qc7 {[%clk 01:12:11]} {[%emt 00:05:28]} 13. Bg5
{[%clk 01:16:23]} {[%emt 00:19:40]} f6 {[%clk 00:49:23]} {[%emt 00:23:18]} 14.
exf6 {[%clk 01:15:30]} {[%emt 00:01:23]} exf6 {[%clk 00:49:46]} {[%emt
00:00:06]} 15. Bd2 {[%clk 01:14:18]} {[%emt 00:01:43]} Bd7 {[%clk 00:48:46]}
{[%emt 00:01:28]} 16. Rb1 {[%clk 01:09:34]} {[%emt 00:05:16]} a6 {[%clk
00:47:07]} {[%emt 00:02:10]} 17. Qc1 {[%clk 00:59:48]} {[%emt 00:10:16]} Rfe8
{[%clk 00:42:58]} {[%emt 00:04:38]} 18. Rxe8+ {[%clk 00:37:48]} {[%emt
00:22:30]} Bxe8 {[%clk 00:42:36]} {[%emt 00:00:51]} 19. Bf4 {[%clk 00:36:20]}
{[%emt 00:01:58]} Qc6 {[%clk 00:40:41]} {[%emt 00:02:24]} 20. Qa3 {[%clk
00:31:12]} {[%emt 00:05:38]} Nc4 {[%clk 00:40:35]} {[%emt 00:00:38]} 21. Qe7
{[%clk 00:17:45]} {[%emt 00:13:56]} b5 {[%clk 00:37:42]} {[%emt 00:03:23]} 22.
a4 {[%clk 00:17:42]} {[%emt 00:00:34]} Qd7 {[%clk 00:30:17]} {[%emt 00:07:54]}
23. Qxd7 {[%clk 00:14:59]} {[%emt 00:03:15]} Bxd7 {[%clk 00:30:44]} {[%emt
00:00:03]} 24. Bxc4 {[%clk 00:05:31]} {[%emt 00:09:58]} bxc4 {[%clk 00:28:07]}
{[%emt 00:03:06]} 25. a5 {[%clk 00:05:55]} {[%emt 00:00:06]} Bb5 {[%clk
00:28:29]} {[%emt 00:00:07]} 26. Bd6 {[%clk 00:06:18]} {[%emt 00:00:08]} Re8
{[%clk 00:28:18]} {[%emt 00:00:41]} 27. Kf1 {[%clk 00:06:04]} {[%emt 00:00:44]}
Bh6 {[%clk 00:27:52]} {[%emt 00:00:55]} 28. Re1 {[%clk 00:00:36]} {[%emt
00:05:59]} Rxe1+ {[%clk 00:26:44]} {[%emt 00:01:38]} 29. Nxe1 {[%clk 00:01:00]}
{[%emt 00:00:06]} Bd2 {[%clk 00:26:16]} {[%emt 00:00:58]} 30. Bb4 {[%clk
00:01:25]} {[%emt 00:00:06]} Bf4 {[%clk 00:26:30]} {[%emt 00:00:15]} 31. Nc2
{[%clk 00:01:10]} {[%emt 00:00:46]} Kf7 {[%clk 00:24:55]} {[%emt 00:02:05]} 32.
g3 {[%clk 00:01:04]} {[%emt 00:00:35]} Bc7 {[%clk 00:25:18]} {[%emt 00:00:05]}
33. Ke2 {[%clk 00:01:20]} {[%emt 00:00:17]} g5 {[%clk 00:23:47]} {[%emt
00:02:00]} 34. Ne3 {[%clk 00:01:22]} {[%emt 00:00:28]} Ke6 {[%clk 00:24:09]}
{[%emt 00:00:07]} 35. h3 {[%clk 00:00:47]} {[%emt 00:01:05]} Be8 {[%clk
00:23:47]} {[%emt 00:00:51]} 36. g4 {[%clk 00:00:37]} {[%emt 00:00:41]} Bg6
{[%clk 00:24:09]} {[%emt 00:00:07]} 37. f3 {[%clk 00:00:45]} {[%emt 00:00:23]}
h5 {[%clk 00:13:09]} {[%emt 00:11:29]} 38. Kf2 {[%clk 00:00:36]} {[%emt
00:00:40]} Bd8 {[%clk 00:03:31]} {[%emt 00:10:08]} 39. Ng2 {[%clk 00:00:41]}
{[%emt 00:00:25]} Bc7 {[%clk 00:02:51]} {[%emt 00:01:11]} 40. Ne3 {[%clk
00:00:42]} {[%emt 00:00:30]} Bb8 {[%clk 00:01:52]} {[%emt 00:01:28]} 41. Bc5
{[%clk 00:00:34]} {[%emt 00:00:38]} Bf4 {[%clk 00:23:48]} {[%emt 00:08:34]} 42.
Bb4 {[%clk 00:29:24]} {[%emt 00:01:41]} Bc7 {[%clk 00:23:52]} {[%emt 00:00:26]}
43. Kg2 {[%clk 00:29:02]} {[%emt 00:00:52]} f5 {[%clk 00:23:14]} {[%emt
00:01:08]} 44. Kf2 {[%clk 00:27:51]} {[%emt 00:01:41]} fxg4 {[%clk 00:14:11]}
{[%emt 00:09:33]} 45. fxg4 {[%clk 00:28:01]} {[%emt 00:00:20]} h4 {[%clk
00:11:26]} {[%emt 00:03:14]} 46. Kf1 {[%clk 00:21:03]} {[%emt 00:07:28]} Bd3+
{[%clk 00:11:21]} {[%emt 00:00:35]} 47. Kg1 {[%clk 00:21:23]} {[%emt 00:00:11]}
Bf4 {[%clk 00:10:42]} {[%emt 00:01:09]} 48. Kf2 {[%clk 00:21:47]} {[%emt
00:00:06]} Bg3+ {[%clk 00:10:57]} {[%emt 00:00:14]} 49. Kg2 {[%clk 00:22:07]}
{[%emt 00:00:10]} Be1 {[%clk 00:08:16]} {[%emt 00:03:11]} 50. Kg1 {[%clk
00:20:46]} {[%emt 00:01:51]} Be4 {[%clk 00:05:48]} {[%emt 00:02:57]} 51. Kf1
{[%clk 00:21:00]} {[%emt 00:00:17]} Bg3 {[%clk 00:05:25]} {[%emt 00:00:53]} 52.
Kg1 {[%clk 00:21:11]} {[%emt 00:00:20]} Bf4 {[%clk 00:04:28]} {[%emt 00:01:27]}
53. Kf2 {[%clk 00:21:13]} {[%emt 00:00:28]} Kd7 {[%clk 00:04:51]} {[%emt
00:00:07]} 54. Nf5 {[%clk 00:20:51]} {[%emt 00:00:52]} Kc6 {[%clk 00:05:06]}
{[%emt 00:00:15]} 55. Ng7 {[%clk 00:20:29]} {[%emt 00:00:52]} Bg3+ {[%clk
00:02:35]} {[%emt 00:03:01]} 56. Kg1 {[%clk 00:20:52]} {[%emt 00:00:07]} Bd6
{[%clk 00:02:19]} {[%emt 00:00:45]} 57. Bxd6 {[%clk 00:16:24]} {[%emt
00:04:59]} Kxd6 {[%clk 00:02:47]} {[%emt 00:00:02]} 58. Ne8+ {[%clk 00:10:22]}
{[%emt 00:06:33]} Kc6 {[%clk 00:03:15]} {[%emt 00:00:01]} 59. Kf2 {[%clk
00:07:57]} {[%emt 00:02:54]} Bg6 {[%clk 00:03:40]} {[%emt 00:00:04]} 60. Nf6
{[%clk 00:05:26]} {[%emt 00:03:02]} Kd6 {[%clk 00:03:38]} {[%emt 00:00:32]} 61.
Kf3 {[%clk 00:03:21]} {[%emt 00:02:35]} Ke6 {[%clk 00:04:02]} {[%emt 00:00:06]}
62. Ng8 {[%clk 00:03:39]} {[%emt 00:00:12]} Bh7 {[%clk 00:03:45]} {[%emt
00:00:47]} 63. Nh6 {[%clk 00:03:30]} {[%emt 00:00:39]} Kf6 {[%clk 00:04:10]}
{[%emt 00:00:05]} 0-1

[Event "Chess Festival Groningen 2023 | A"]
[Site "Groningen, Netherlands"]
[Date "2023.12.23"]
[Round "3.8"]
[White "Elgersma, Onno"]
[Black "Tiviakov, Sergei"]
[Result "0-1"]
[TimeControl "90min/40moves + 30min + 30sec/move"]
[WhiteElo "2310"]
[BlackElo "2536"]

1. e4 {[%clk 01:30:57]} {[%emt 00:00:03]} e6 {[%clk 01:30:55]} {[%emt
00:00:06]} 2. d4 {[%clk 01:31:20]} {[%emt 00:00:06]} d5 {[%clk 01:31:20]}
{[%emt 00:00:05]} 3. Nd2 {[%clk 01:31:43]} {[%emt 00:00:07]} dxe4 {[%clk
01:31:31]} {[%emt 00:00:20]} 4. Nxe4 {[%clk 01:32:04]} {[%emt 00:00:09]} Bd7
{[%clk 01:32:00]} {[%emt 00:00:02]} 5. Nf3 {[%clk 01:32:16]} {[%emt 00:00:17]}
Bc6 {[%clk 01:32:24]} {[%emt 00:00:06]} 6. Bd3 {[%clk 01:32:38]} {[%emt
00:00:08]} Nd7 {[%clk 01:32:47]} {[%emt 00:00:08]} 7. O-O {[%clk 01:32:51]}
{[%emt 00:00:16]} Ngf6 {[%clk 01:33:08]} {[%emt 00:00:09]} 8. Ng3 {[%clk
01:32:52]} {[%emt 00:00:29]} Be7 {[%clk 01:33:14]} {[%emt 00:00:24]} 9. Re1
{[%clk 01:31:35]} {[%emt 00:01:47]} O-O {[%clk 01:33:37]} {[%emt 00:00:07]} 10.
Qe2 {[%clk 01:29:41]} {[%emt 00:02:24]} Bxf3 {[%clk 01:31:31]} {[%emt
00:02:36]} 11. Qxf3 {[%clk 01:29:29]} {[%emt 00:00:42]} c6 {[%clk 01:31:58]}
{[%emt 00:00:04]} 12. c3 {[%clk 01:25:04]} {[%emt 00:04:54]} Re8 {[%clk
01:28:19]} {[%emt 00:04:10]} 13. Bc2 {[%clk 01:11:54]} {[%emt 00:13:40]} a5
{[%clk 01:22:16]} {[%emt 00:06:33]} 14. a4 {[%clk 01:07:24]} {[%emt 00:05:00]}
Qc7 {[%clk 01:05:11]} {[%emt 00:17:35]} 15. Ne4 {[%clk 00:53:39]} {[%emt
00:14:15]} Nxe4 {[%clk 01:01:35]} {[%emt 00:04:07]} 16. Qxe4 {[%clk 00:52:11]}
{[%emt 00:01:57]} g6 {[%clk 01:01:31]} {[%emt 00:00:34]} 17. g3 {[%clk
00:46:34]} {[%emt 00:06:08]} Rad8 {[%clk 00:59:04]} {[%emt 00:02:57]} 18. Bf4
{[%clk 00:39:05]} {[%emt 00:07:57]} Qb6 {[%clk 00:58:16]} {[%emt 00:01:19]} 19.
Rab1 {[%clk 00:39:23]} {[%emt 00:00:13]} Nf6 {[%clk 00:51:16]} {[%emt
00:07:30]} 20. Qf3 {[%clk 00:38:49]} {[%emt 00:01:03]} Rd7 {[%clk 00:47:24]}
{[%emt 00:04:22]} 21. Re2 {[%clk 00:30:55]} {[%emt 00:08:24]} Nd5 {[%clk
00:41:43]} {[%emt 00:06:11]} 22. Bh6 {[%clk 00:30:19]} {[%emt 00:01:05]} Bf8
{[%clk 00:41:10]} {[%emt 00:01:04]} 23. Bxf8 {[%clk 00:28:46]} {[%emt
00:02:03]} Rxf8 {[%clk 00:41:25]} {[%emt 00:00:16]} 24. h4 {[%clk 00:28:42]}
{[%emt 00:00:34]} Qd8 {[%clk 00:40:02]} {[%emt 00:01:52]} 25. Re5 {[%clk
00:25:24]} {[%emt 00:03:48]} Kg7 {[%clk 00:37:18]} {[%emt 00:03:15]} 26. h5
{[%clk 00:24:46]} {[%emt 00:01:08]} b6 {[%clk 00:36:50]} {[%emt 00:00:58]} 27.
Bb3 {[%clk 00:23:42]} {[%emt 00:01:34]} Rd6 {[%clk 00:35:27]} {[%emt 00:01:53]}
28. Rbe1 {[%clk 00:18:27]} {[%emt 00:05:45]} Nf6 {[%clk 00:34:48]} {[%emt
00:01:09]} 29. g4 {[%clk 00:10:10]} {[%emt 00:08:46]} gxh5 {[%clk 00:24:57]}
{[%emt 00:10:21]} 30. gxh5 {[%clk 00:09:20]} {[%emt 00:01:21]} Rg8 {[%clk
00:25:12]} {[%emt 00:00:15]} 31. Rg5+ {[%clk 00:07:33]} {[%emt 00:02:16]} Kh6
{[%clk 00:22:52]} {[%emt 00:02:50]} 32. Rxg8 {[%clk 00:07:53]} {[%emt
00:00:10]} Qxg8+ {[%clk 00:23:17]} {[%emt 00:00:05]} 33. Kf1 {[%clk 00:08:00]}
{[%emt 00:00:23]} Qg5 {[%emt 00:00:58]} 34. Re5 {[%clk 00:07:59]} Qh4 {[%clk
00:23:15]} {[%emt 00:00:36]} 35. Qe3+ {[%clk 00:06:07]} {[%emt 00:02:22]} Kg7
{[%clk 00:23:38]} {[%emt 00:00:07]} 36. Rg5+ {[%clk 00:02:20]} {[%emt
00:04:17]} Kf8 {[%clk 00:24:01]} {[%emt 00:00:07]} 37. Ke2 {[%clk 00:00:34]}
{[%emt 00:02:15]} Ke7 {[%clk 00:23:31]} {[%emt 00:01:00]} 38. Qg3 {[%clk
00:00:34]} {[%emt 00:00:30]} Qe4+ {[%clk 00:22:26]} {[%emt 00:01:36]} 39. Kd2
{[%clk 00:00:35]} {[%emt 00:00:28]} Qb1 {[%clk 00:21:05]} {[%emt 00:01:51]} 40.
Bc2 {[%clk 00:00:47]} {[%emt 00:00:18]} Qxb2 {[%clk 00:21:31]} {[%emt
00:00:05]} 41. Qh4 {[%clk 00:19:16]} {[%emt 00:12:00]} c5 {[%clk 00:49:02]}
{[%emt 00:02:59]} 42. d5 {[%clk 00:19:19]} {[%emt 00:00:26]} Kd7 {[%clk
00:47:56]} {[%emt 00:01:35]} 0-1

[Event "Chess Festival Groningen 2023 | A"]
[Site "Groningen, Netherlands"]
[Date "2023.12.23"]
[Round "3.9"]
[White "Maatman, Nick"]
[Black "Kollen, Zyon"]
[Result "1-0"]
[TimeControl "90min/40moves + 30min + 30sec/move"]
[WhiteElo "2371"]
[BlackElo "2318"]

1. e4 {[%clk 01:30:51]} {[%emt 00:00:09]} e6 {[%clk 01:30:56]} {[%emt
00:00:06]} 2. d4 {[%clk 01:31:06]} {[%emt 00:00:14]} d5 {[%clk 01:31:19]}
{[%emt 00:00:07]} 3. Nc3 {[%clk 01:31:33]} {[%emt 00:00:03]} Bb4 {[%clk
01:31:40]} {[%emt 00:00:09]} 4. e5 {[%clk 01:31:57]} {[%emt 00:00:06]} c5
{[%clk 01:32:06]} {[%emt 00:00:05]} 5. a3 {[%clk 01:32:23]} {[%emt 00:00:04]}
Bxc3+ {[%clk 01:32:32]} {[%emt 00:00:04]} 6. bxc3 {[%clk 01:32:50]} {[%emt
00:00:03]} Ne7 {[%clk 01:28:13]} {[%emt 00:04:50]} 7. h4 {[%clk 01:28:33]}
{[%emt 00:04:46]} Qa5 {[%clk 01:18:26]} {[%emt 00:10:17]} 8. Bd2 {[%clk
01:28:39]} {[%emt 00:00:24]} Qa4 {[%clk 01:18:52]} {[%emt 00:00:05]} 9. h5
{[%clk 01:25:56]} {[%emt 00:03:12]} h6 {[%clk 01:18:09]} {[%emt 00:01:14]} 10.
Rb1 {[%clk 01:19:36]} {[%emt 00:06:50]} c4 {[%clk 01:17:04]} {[%emt 00:01:35]}
11. Rh3 {[%clk 01:16:20]} {[%emt 00:03:46]} Nbc6 {[%clk 01:14:37]} {[%emt
00:02:57]} 12. g4 {[%clk 01:12:21]} {[%emt 00:04:29]} b6 {[%clk 01:01:56]}
{[%emt 00:13:12]} 13. f4 {[%clk 01:12:22]} {[%emt 00:00:29]} Bd7 {[%clk
00:59:50]} {[%emt 00:02:36]} 14. Rg3 {[%clk 01:00:38]} {[%emt 00:12:13]} O-O-O
{[%clk 00:58:52]} {[%emt 00:01:29]} 15. Bh3 {[%clk 01:00:54]} {[%emt 00:00:13]}
g6 {[%clk 00:49:46]} {[%emt 00:09:37]} 16. hxg6 {[%clk 00:51:08]} {[%emt
00:10:15]} fxg6 {[%clk 00:46:14]} {[%emt 00:04:02]} 17. Nf3 {[%clk 00:51:28]}
{[%emt 00:00:10]} Rdf8 {[%clk 00:34:17]} {[%emt 00:12:27]} 18. Kf2 {[%clk
00:41:38]} {[%emt 00:10:19]} Nd8 {[%clk 00:25:32]} {[%emt 00:09:16]} 19. Rb4
{[%clk 00:39:28]} {[%emt 00:02:41]} Qa5 {[%clk 00:20:20]} {[%emt 00:05:42]} 20.
a4 {[%clk 00:35:01]} {[%emt 00:04:57]} h5 {[%clk 00:16:38]} {[%emt 00:04:12]}
21. g5 {[%clk 00:26:46]} {[%emt 00:08:44]} Be8 {[%clk 00:15:52]} {[%emt
00:01:16]} 22. Nh4 {[%clk 00:25:25]} {[%emt 00:01:50]} Rh7 {[%clk 00:11:09]}
{[%emt 00:05:14]} 23. Qa1 {[%clk 00:20:47]} {[%emt 00:05:07]} Nf5 {[%clk
00:10:11]} {[%emt 00:01:29]} 24. Bxf5 {[%clk 00:19:00]} {[%emt 00:02:16]} exf5
{[%clk 00:09:49]} {[%emt 00:00:53]} 25. Rg1 {[%clk 00:17:25]} {[%emt 00:02:06]}
Ne6 {[%clk 00:09:29]} {[%emt 00:00:51]} 26. Rgb1 {[%clk 00:17:28]} {[%emt
00:00:26]} Qa6 {[%clk 00:04:46]} {[%emt 00:05:13]} 27. Bc1 {[%clk 00:12:13]}
{[%emt 00:05:45]} Rg8 {[%clk 00:05:05]} {[%emt 00:00:11]} 28. Kg3 {[%clk
00:12:33]} {[%emt 00:00:09]} Rb7 {[%clk 00:04:00]} {[%emt 00:01:35]} 29. Qa3
{[%clk 00:10:50]} {[%emt 00:02:13]} Rgg7 {[%clk 00:03:40]} {[%emt 00:00:51]} 30.
Ra1 {[%clk 00:10:14]} {[%emt 00:01:06]} Rb8 {[%clk 00:02:37]} {[%emt 00:01:33]}
31. Rbb1 {[%clk 00:08:47]} {[%emt 00:01:56]} b5 {[%clk 00:01:12]} {[%emt
00:01:56]} 32. a5 {[%clk 00:03:35]} {[%emt 00:05:42]} Rd7 {[%clk 00:01:02]}
{[%emt 00:00:40]} 33. Qb4 {[%clk 00:03:40]} {[%emt 00:00:24]} Qc6 {[%clk
00:01:12]} {[%emt 00:00:20]} 34. a6 {[%clk 00:03:19]} {[%emt 00:00:52]} Rb6
{[%clk 00:01:32]} {[%emt 00:00:10]} 35. Ra5 {[%clk 00:03:43]} {[%emt 00:00:05]}
Rg7 {[%clk 00:01:36]} {[%emt 00:00:26]} 36. Rba1 {[%clk 00:03:48]} {[%emt
00:00:25]} Qd7 {[%clk 00:00:57]} {[%emt 00:01:10]} 37. Ba3 {[%clk 00:03:39]}
{[%emt 00:00:39]} Nd8 {[%clk 00:00:54]} {[%emt 00:00:33]} 38. Qb1 {[%clk
00:01:48]} {[%emt 00:02:20]} Ne6 {[%clk 00:01:09]} {[%emt 00:00:16]} 39. Bb4
{[%clk 00:00:51]} {[%emt 00:01:27]} Rh7 {[%clk 00:00:50]} {[%emt 00:00:50]} 40.
Qh1 {[%clk 00:00:47]} {[%emt 00:00:32]} Rh8 {[%clk 00:00:45]} {[%emt 00:00:37]}
41. Bc5 {[%clk 00:20:11]} {[%emt 00:11:05]} Rb8 {[%clk 00:21:12]} {[%emt
00:10:03]} 42. Bd6 {[%clk 00:19:01]} {[%emt 00:01:40]} Nc7 {[%clk 00:21:38]}
{[%emt 00:00:04]} 43. Qb1 {[%clk 00:14:52]} {[%emt 00:04:39]} Qe6 {[%clk
00:16:39]} {[%emt 00:05:29]} 44. Qb4 {[%clk 00:14:35]} {[%emt 00:00:46]} Bc6
{[%clk 00:13:26]} {[%emt 00:03:44]} 45. Bxc7 {[%clk 00:13:32]} {[%emt
00:01:32]} Kxc7 {[%clk 00:13:52]} {[%emt 00:00:04]} 46. Qd6+ {[%clk 00:13:51]}
{[%emt 00:00:11]} Qxd6 {[%clk 00:14:19]} {[%emt 00:00:04]} 47. exd6+ {[%clk
00:14:17]} {[%emt 00:00:03]} Kxd6 {[%clk 00:14:34]} {[%emt 00:00:15]} 48. Nxg6
{[%clk 00:14:43]} {[%emt 00:00:03]} Rhg8 {[%clk 00:13:19]} {[%emt 00:01:46]} 49.
Ne5 {[%clk 00:14:43]} {[%emt 00:00:30]} Be8 {[%clk 00:13:43]} {[%emt 00:00:05]}
50. Re1 {[%clk 00:12:07]} {[%emt 00:03:05]} b4 {[%clk 00:11:56]} {[%emt
00:02:17]} 51. cxb4 {[%clk 00:09:51]} {[%emt 00:02:46]} Rxb4 {[%clk 00:12:22]}
{[%emt 00:00:04]} 52. c3 {[%clk 00:09:13]} {[%emt 00:01:08]} Rb3 {[%clk
00:12:14]} {[%emt 00:00:38]} 53. Re3 {[%emt 00:03:37]} Rb1 {[%clk 00:09:12]} 54.
Nf3 {[%clk 00:09:12]} {[%emt 00:00:55]} Bf7 {[%clk 00:06:59]} {[%emt 00:02:44]}
55. Ra2 {[%clk 00:07:32]} {[%emt 00:02:10]} Be6 {[%clk 00:04:26]} {[%emt
00:03:03]} 56. Rae2 {[%clk 00:07:48]} {[%emt 00:00:13]} Bd7 {[%clk 00:04:47]}
{[%emt 00:00:09]} 57. Ne5 {[%clk 00:05:48]} {[%emt 00:02:29]} h4+ {[%clk
00:03:31]} {[%emt 00:01:46]} 58. Kxh4 {[%clk 00:04:54]} {[%emt 00:01:24]} Rg1
{[%clk 00:03:33]} {[%emt 00:00:27]} 59. Nf7+ {[%clk 00:04:53]} {[%emt
00:00:31]} Kc7 {[%clk 00:03:53]} {[%emt 00:00:11]} 60. Nh6 {[%clk 00:03:37]}
{[%emt 00:01:46]} Rh1+ {[%clk 00:02:31]} {[%emt 00:01:53]} 61. Rh3 {[%clk
00:03:50]} {[%emt 00:00:16]} Rxh3+ {[%clk 00:02:56]} {[%emt 00:00:05]} 62. Kxh3
{[%clk 00:04:17]} {[%emt 00:00:03]} Rg6 {[%clk 00:03:16]} {[%emt 00:00:10]} 63.
Re5 {[%clk 00:04:09]} {[%emt 00:00:37]} Rxa6 {[%clk 00:03:16]} {[%emt
00:00:31]} 64. Rxd5 {[%clk 00:04:28]} {[%emt 00:00:10]} Ra1 {[%clk 00:02:19]}
{[%emt 00:01:27]} 65. Rc5+ {[%clk 00:03:42]} {[%emt 00:01:17]} Kb6 {[%clk
00:02:24]} {[%emt 00:00:25]} 66. Nf7 {[%clk 00:04:01]} {[%emt 00:00:10]} Rc1
{[%clk 00:01:39]} {[%emt 00:01:16]} 67. Ne5 {[%clk 00:03:36]} {[%emt 00:00:54]}
Rxc3+ {[%clk 00:01:57]} {[%emt 00:00:13]} 68. Kh4 {[%clk 00:04:05]} Bb5 {[%clk
00:01:50]} {[%emt 00:00:38]} 69. g6 {[%clk 00:04:16]} {[%emt 00:00:18]} Rc1
{[%clk 00:01:52]} {[%emt 00:00:28]} 70. Kg5 {[%clk 00:04:33]} {[%emt 00:00:12]}
a5 {[%clk 00:00:53]} {[%emt 00:01:29]} 71. g7 {[%clk 00:04:38]} {[%emt
00:00:25]} a4 {[%clk 00:01:06]} {[%emt 00:00:18]} 72. Kf6 {[%clk 00:04:25]}
{[%emt 00:00:42]} Rg1 {[%clk 00:01:27]} {[%emt 00:00:09]} 73. Nxc4+ {[%clk
00:03:53]} {[%emt 00:01:01]} Ka6 {[%clk 00:01:44]} {[%emt 00:00:14]} 74. Kf7
{[%clk 00:03:02]} {[%emt 00:01:21]} 1-0

[Event "Chess Festival Groningen 2023 | A"]
[Site "Groningen, Netherlands"]
[Date "2023.12.23"]
[Round "3.10"]
[White "De Boer, Eelke"]
[Black "Ter-Avetisjana, Agnesa Stepania"]
[Result "1-0"]
[TimeControl "90min/40moves + 30min + 30sec/move"]
[BlackFideId "11614900"]
[WhiteElo "2346"]
[BlackElo "1974"]

1. e4 {[%clk 01:30:56]} {[%emt 00:00:02]} c6 {[%clk 01:30:52]} {[%emt
00:00:09]} 2. d4 {[%clk 01:31:13]} {[%emt 00:00:13]} d5 {[%clk 01:31:16]}
{[%emt 00:00:06]} 3. e5 {[%clk 01:31:34]} {[%emt 00:00:08]} Bf5 {[%clk
01:31:40]} {[%emt 00:00:06]} 4. Nf3 {[%clk 01:31:55]} {[%emt 00:00:08]} e6
{[%clk 01:32:04]} {[%emt 00:00:06]} 5. Be2 {[%clk 01:32:18]} {[%emt 00:00:06]}
c5 {[%clk 01:31:07]} {[%emt 00:01:29]} 6. c3 {[%clk 01:29:28]} {[%emt
00:03:19]} Nc6 {[%clk 01:31:03]} {[%emt 00:00:34]} 7. O-O {[%clk 01:28:54]}
{[%emt 00:01:03]} Bg4 {[%clk 01:30:10]} {[%emt 00:01:24]} 8. Nbd2 {[%clk
01:29:01]} {[%emt 00:00:23]} cxd4 {[%clk 01:29:18]} {[%emt 00:01:23]} 9. cxd4
{[%clk 01:29:18]} {[%emt 00:00:13]} Qb6 {[%clk 01:28:44]} {[%emt 00:01:03]} 10.
a3 {[%clk 01:29:11]} {[%emt 00:00:38]} a5 {[%clk 01:25:31]} {[%emt 00:03:44]}
11. h3 {[%clk 01:26:16]} {[%emt 00:03:24]} Bh5 {[%clk 01:25:36]} {[%emt
00:00:25]} 12. Qa4 {[%clk 01:25:36]} {[%emt 00:01:10]} Nge7 {[%clk 01:23:38]}
{[%emt 00:02:29]} 13. b4 {[%clk 01:21:55]} {[%emt 00:04:10]} Bxf3 {[%clk
01:09:03]} {[%emt 00:15:05]} 14. Nxf3 {[%clk 01:22:14]} {[%emt 00:00:10]} Nf5
{[%clk 01:09:28]} {[%emt 00:00:06]} 15. Bd2 {[%clk 01:11:20]} {[%emt 00:11:24]}
Be7 {[%clk 01:02:57]} {[%emt 00:07:01]} 16. Bc3 {[%clk 00:51:30]} {[%emt
00:20:20]} O-O {[%clk 00:59:15]} {[%emt 00:04:12]} 17. b5 {[%clk 00:51:47]}
{[%emt 00:00:13]} Nb8 {[%clk 00:59:23]} {[%emt 00:00:22]} 18. Bd3 {[%clk
00:50:51]} {[%emt 00:01:26]} Nd7 {[%clk 00:58:15]} {[%emt 00:01:38]} 19. Qc2
{[%clk 00:45:12]} {[%emt 00:06:09]} g6 {[%clk 00:56:57]} {[%emt 00:01:48]} 20.
Qd2 {[%clk 00:43:45]} {[%emt 00:01:56]} Rfc8 {[%clk 00:56:03]} {[%emt
00:01:25]} 21. a4 {[%clk 00:39:46]} {[%emt 00:04:29]} Qa7 {[%clk 00:54:04]}
{[%emt 00:02:29]} 22. Bb2 {[%clk 00:35:12]} {[%emt 00:05:03]} Bb4 {[%clk
00:51:34]} {[%emt 00:03:01]} 23. Qf4 {[%clk 00:33:55]} {[%emt 00:01:47]} Nb6
{[%clk 00:44:19]} {[%emt 00:07:45]} 24. g4 {[%clk 00:29:51]} {[%emt 00:04:33]}
Ng7 {[%clk 00:44:41]} {[%emt 00:00:09]} 25. Qh6 {[%clk 00:23:28]} {[%emt
00:06:52]} Nd7 {[%clk 00:42:47]} {[%emt 00:02:25]} 26. h4 {[%clk 00:23:37]}
{[%emt 00:00:20]} Ne8 {[%clk 00:38:14]} {[%emt 00:05:03]} 27. Rac1 {[%clk
00:18:53]} {[%emt 00:05:14]} Bf8 {[%clk 00:36:35]} {[%emt 00:02:10]} 28. Qf4
{[%clk 00:19:12]} {[%emt 00:00:10]} Be7 {[%clk 00:31:20]} {[%emt 00:05:46]} 29.
h5 {[%clk 00:16:46]} {[%emt 00:02:55]} Nb6 {[%clk 00:30:16]} {[%emt 00:01:35]}
30. Ba3 {[%clk 00:07:32]} {[%emt 00:09:43]} Bd8 {[%clk 00:22:35]} {[%emt
00:08:11]} 31. hxg6 {[%clk 00:07:43]} {[%emt 00:00:18]} hxg6 {[%clk 00:22:46]}
{[%emt 00:00:19]} 32. Bxg6 {[%clk 00:07:57]} {[%emt 00:00:16]} fxg6 {[%clk
00:22:50]} {[%emt 00:00:27]} 33. Qf8+ {[%clk 00:08:20]} {[%emt 00:00:06]} Kh7
{[%clk 00:23:15]} {[%emt 00:00:05]} 34. Kg2 {[%clk 00:08:33]} {[%emt 00:00:16]}
1-0